fUSD/lending_fUSD_20250629
["ID","MTS","AMOUNT","RATE_DAILY","PERIOD"]
[368575235,1751213432778,-500.0,0.00021904,2]
[368575237,1751213432788,-500.0,0.00021904,2]
[368575239,1751213432798,-1000.0,0.00021904,2]
[368575241,1751213432807,-500.0,0.00021904,2]
[368575243,1751213432817,-500.0,0.00021904,2]
[368575245,1751213432826,-1000.0,0.00021904,2]
[368575247,1751213432837,-1000.0,0.00021904,2]
[368575249,1751213432846,-1000.0,0.00021904,2]
[368575251,1751213432856,-500.0,0.00021904,2]
[368575253,1751213432866,-1000.0,0.00021904,2]
[368575255,1751213432875,-500.0,0.00021904,2]
[368575257,1751213432888,-1000.0,0.00021904,2]
[368575259,1751213432897,-500.0,0.00021904,2]
[368575261,1751213432906,-1116.59789912,0.00021904,2]
[368575263,1751213432916,-500.0,0.00021904,2]
[368575265,1751213432927,-500.0,0.00021904,2]
[368575267,1751213432936,-500.0,0.00021904,2]
[368575269,1751213432946,-500.0,0.00021904,2]
[368575271,1751213432955,-500.0,0.00021904,2]
[368575273,1751213432966,-500.0,0.00021904,2]
[368575275,1751213432976,-500.0,0.00021904,2]
[368575277,1751213432986,-500.0,0.00021904,2]
[368575279,1751213432995,-500.0,0.00021904,2]
[368575280,1751213433005,-500.0,0.00021904,2]
[368575282,1751213433014,-500.0,0.00021904,2]
[368575284,1751213433024,-500.0,0.00021904,2]
[368575286,1751213433034,-300.0,0.00021904,2]
[368575288,1751213433043,-300.0,0.00021904,2]
[368575290,1751213433053,-300.0,0.00021904,2]
[368575292,1751213433064,-300.0,0.00021904,2]
[368575294,1751213433075,-300.0,0.00021904,2]
[368575296,1751213433084,-300.0,0.00021904,2]
[368575298,1751213433094,-300.0,0.00021904,2]
[368575300,1751213433104,-300.0,0.00021904,2]
[368575302,1751213433115,-300.0,0.00021904,2]
[368575304,1751213433125,-300.0,0.00021904,2]
[368575306,1751213433135,-300.0,0.00021904,2]
[368575308,1751213433145,-164.11964748,0.00021907,2]
[368575310,1751213433156,-1300.01,0.00021907,2]
[368575312,1751213433167,-1183.035,0.00021909,2]
[368575314,1751213433177,-154.466,0.00021909,2]
[368575316,1751213433188,-966.28409994,0.00021917,2]
[368575318,1751213433198,-490.0,0.00021917,2]
[368575320,1751213433208,-777.8,0.00021917,2]
[368575322,1751213433217,-1139.91,0.00021917,2]
[368575324,1751213433227,-490.0,0.00021917,2]
[368575326,1751213433237,-765.38,0.00021917,2]
[368575328,1751213433246,-490.0,0.00021917,2]
[368575330,1751213433256,-490.0,0.00021917,2]
[368575332,1751213433267,-490.0,0.00021917,2]
[368575334,1751213433276,-1495.54,0.00021917,2]
[368575335,1751213433286,-490.0,0.00021917,2]
[368575337,1751213433296,-614.38,0.00021917,2]
[368575339,1751213433307,-490.89,0.00021917,2]
[368575341,1751213433317,-1493.12,0.00021917,2]
[368575343,1751213433327,-490.0,0.00021917,2]
[368575345,1751213433338,-490.0,0.00021917,2]
[368575348,1751213433350,-1958.08,0.00021917,2]
[368575349,1751213433360,-490.0,0.00021917,2]
[368575351,1751213433370,-503.94,0.00021917,2]
[368575353,1751213433381,-490.0,0.00021917,2]
[368575356,1751213433391,-860.73,0.00021917,2]
[368575357,1751213433401,-490.0,0.00021917,2]
[368575360,1751213433411,-490.0,0.00021917,2]
[368575362,1751213433422,-2587.88,0.00021917,2]
[368575363,1751213433432,-490.0,0.00021917,2]
[368575365,1751213433444,-490.34972773,0.00021917,2]
[368575368,1751213433455,-1029.37117331,0.00021917,2]
[368575370,1751213433471,-234.48882669,0.00021917,2]
[368575372,1751213433483,-490.0,0.00021917,2]
[368575374,1751213433492,-410.72734119,0.00021917,2]
[368575376,1751213433504,-79.27265881,0.00021917,2]
[368575378,1751213433514,-500.0,0.00021917,2]
[368575380,1751213433524,-500.0,0.00021917,2]
[368575382,1751213433533,-86.9901676,0.00021917,2]
[368575384,1751213433546,-413.0098324,0.00021917,2]
[368575386,1751213433558,-500.0,0.00021917,2]
[368575388,1751213433567,-86.9901676,0.00021917,2]
[368575393,1751213433599,-403.0098324,0.00021917,2]
[368575395,1751213433608,-500.0,0.00021917,2]
[368575396,1751213433617,-500.0,0.00021917,2]
[368575398,1751213433627,-240.16850863,0.00021917,2]
[368575400,1751213433638,-259.83149137,0.00021917,2]
[368575402,1751213433648,-490.0,0.00021917,2]
[368575404,1751213433658,-490.0,0.00021917,2]
[368575407,1751213433668,-490.0,0.00021917,2]
[368575408,1751213433678,-360.9313258,0.00021917,2]
[368575411,1751213433690,-129.0686742,0.00021917,2]
[368575413,1751213433700,-293.6688456,0.00021917,2]
[368575429,1751213433856,-1509.4411544,0.00021917,2]
[368575431,1751213433867,-378.56108387,0.00021917,2]
[368575434,1751213433879,-111.43891613,0.00021917,2]
[368575436,1751213433898,-466.39597938,0.00021917,2]
[368575552,1751213438873,-545.46589399,0.00021917,2]
[368575685,1751213440080,-410.87812663,0.00021917,2]
[368575687,1751213440090,-9.70285838,0.00021917,2]
[368575690,1751213440111,-480.29714162,0.00021917,2]
[368575732,1751213440490,-490.0,0.00021917,2]
[368575737,1751213440528,-490.0,0.00021917,2]
[368575739,1751213440539,-490.0,0.00021917,2]
[368575741,1751213440549,-490.0,0.00021917,2]
[368575743,1751213440559,-1481.45,0.00021917,2]
[368575745,1751213440569,-631.9,0.00021917,2]
[368575747,1751213440579,-803.66,0.00021917,2]
[368575749,1751213440590,-3248.86,0.00021917,2]
[368575751,1751213440600,-490.0,0.00021917,2]
[368575753,1751213440610,-490.0,0.00021917,2]
[368575755,1751213440619,-490.0,0.00021917,2]
[368575757,1751213440631,-490.0,0.00021917,2]
[368575759,1751213440640,-755.45814976,0.00021917,2]
[368576563,1751213448546,-355.96687363,0.00021917,2]
[368576569,1751213448672,-459.28497661,0.00021917,2]
[368576570,1751213448682,-742.2397859,0.00021917,2]
[368576571,1751213448694,-276.4802141,0.00021917,2]
[368576572,1751213448704,-490.0,0.00021917,2]
[368576573,1751213448714,-490.0,0.00021917,2]
[368576574,1751213448724,-490.0,0.00021917,2]
[368576576,1751213448734,-218.82406013,0.00021917,2]
[368576578,1751213448746,-271.17593987,0.00021917,2]
[368576580,1751213448756,-490.69942968,0.00021917,2]
[368576582,1751213448765,-495.76692256,0.00021917,2]
[368576584,1751213448775,-464.80797853,0.00021917,2]
[368576587,1751213448786,-25.19202147,0.00021917,2]
[368576589,1751213448796,-231.68255683,0.00021917,2]
[368576591,1751213448807,-411.10744317,0.00021917,2]
[368576593,1751213448817,-23.45995683,0.00021917,2]
[368576908,1751213451960,-87.91136245,0.00021917,2]
[368577093,1751213453722,-26.67606681,0.00021917,2]
[368577255,1751213455393,-171.21,0.00021852,2]
[368577257,1751213455403,-351.95261391,0.00021917,2]
[368577259,1751213455412,-1114.46,0.00021917,2]
[368577261,1751213455421,-205.70458238,0.00021917,2]
[368577561,1751213458448,-307.81331411,0.00021917,2]
[368577863,1751213461465,-80.41806041,0.00021917,2]
[368577872,1751213461542,-673.2540431,0.00021917,2]
[368577874,1751213461551,-192.0898929,0.00021917,2]
[368578238,1751213465386,-297.9101071,0.00021917,2]
[368578240,1751213465395,-490.0,0.00021917,2]
[368578242,1751213465405,-186.6854947,0.00021917,2]
[368578532,1751213685025,378.02,0.00013699,2]
[368578542,1751214378555,250.0,0.00015,2]
[368578543,1751214522055,14750.0,0.000151,2]
[368578544,1751214522080,25000.0,0.000151,2]
[368578545,1751214522103,25000.0,0.000151,2]
[368578546,1751214522127,25000.0,0.000151,2]
[368578547,1751214522151,25000.0,0.000151,2]
[368578548,1751214522174,25000.0,0.000151,2]
[368578549,1751214522198,25000.0,0.000151,2]
[368578550,1751214522220,25000.0,0.000151,2]
[368578551,1751214522245,25000.0,0.000151,2]
[368578552,1751214522272,25000.0,0.000151,2]
[368578553,1751214522296,11194.11139231,0.000151,2]
[368578554,1751214525859,881.52926155,0.00013368,2]
[368578575,1751214632112,-291.52073845,0.00016435,2]
[368578577,1751214632121,-1000.0,0.00016653,3]
[368578578,1751214632131,-163.24,0.00016871,2]
[368578579,1751214632141,-300.0,0.00017,2]
[368578580,1751214632150,-300.0,0.00017714,2]
[368578581,1751214632159,-1000.0,0.00018079,3]
[368578582,1751214632170,-365.0,0.00018438,2]
[368578584,1751214632179,-179.7693505,0.00018458,2]
[368578586,1751214632190,-300.0,0.00018558,2]
[368578588,1751214632200,-250.0,0.00018558,2]
[368578590,1751214632209,-300.0,0.00018558,2]
[368578591,1751214632218,-250.0,0.00018558,2]
[368578593,1751214632228,-300.0,0.00018965,2]
[368578595,1751214632237,-350.0,0.00019,2]
[368578597,1751214632246,-421.50171244,0.00019,5]
[368578599,1751214632258,-5087.49828756,0.00019,5]
[368578601,1751214632268,-1313.0,0.00019026,2]
[368578603,1751214632278,-510.0,0.00019131,2]
[368578605,1751214632292,-1200.0,0.00019172,2]
[368578607,1751214632301,-239.0,0.00019173,2]
[368578609,1751214632310,-590.37783368,0.00019173,2]
[368578611,1751214632320,-300.0,0.00019199,2]
[368578613,1751214632329,-200.0,0.00019351,2]
[368578615,1751214632339,-839.0,0.00019485,2]
[368578617,1751214632348,-224.0,0.00019485,2]
[368578618,1751214632360,-649.0,0.00019522,2]
[368578621,1751214632369,-250.0,0.00019569,2]
[368578622,1751214632379,-300.0,0.00019619,2]
[368578624,1751214632388,-1108.0,0.00019636,2]
[368578626,1751214632398,-320.0,0.00019636,2]
[368578628,1751214632407,-739.35,0.0001967,2]
[368578630,1751214632417,-986.0,0.00019733,2]
[368578632,1751214632426,-362.0,0.00019733,2]
[368578634,1751214632435,-359.0,0.000198,2]
[368578636,1751214632444,-306.0,0.00019898,2]
[368578639,1751214632454,-239.0,0.00019898,2]
[368578641,1751214632468,-1000.0,0.00019899,2]
[368578643,1751214632479,-250.0,0.00019899,2]
[368578645,1751214632488,-323.13023163,0.0002001,2]
[368578657,1751214632597,-1075.2,0.0002001,2]
[368578663,1751214632642,-518.35275405,0.0002001,2]
[368578665,1751214632653,-485.46744609,0.0002001,2]
[368578667,1751214632666,-3369.84956823,0.0002001,2]
[368578669,1751214632676,-200.0,0.0002001,7]
[368578671,1751214632686,-300.0,0.00020056,2]
[368578673,1751214632696,-1500.0,0.00020056,2]
[368578676,1751214632706,-301.26,0.00020073,2]
[368578677,1751214632716,-301.3,0.00020073,2]
[368578679,1751214632726,-6366.41919282,0.00020152,2]
[368578697,1751214637854,-311.07080718,0.00020152,2]
[368578698,1751214637863,-730.97,0.00020181,2]
[368578699,1751214637873,-378.02,0.00020187,2]
[368578700,1751214637881,-150.0,0.00020276,2]
[368578701,1751214637891,-400.0,0.000206,7]
[368578703,1751214637900,-900.0,0.000207,7]
[368578705,1751214637909,-1400.0,0.000208,7]
[368578706,1751214637919,-179.7693505,0.000208,2]
[368578708,1751214637928,-168.44,0.0002085,2]
[368578710,1751214637938,-255.76775401,0.00020885,2]
[368578711,1751214637947,-207.4,0.00020885,2]
[368578713,1751214637956,-1000.0,0.00020886,2]
[368578715,1751214637966,-300.0,0.00020887,2]
[368578717,1751214637975,-151.0,0.00020887,2]
[368578719,1751214637984,-500.0,0.00020887,2]
[368578721,1751214637993,-500.0,0.00020887,2]
[368578723,1751214638002,-500.0,0.00020887,2]
[368578725,1751214638011,-500.0,0.00020887,2]
[368578726,1751214638019,-500.0,0.00020887,2]
[368578728,1751214638028,-500.0,0.00020887,2]
[368578730,1751214638037,-500.0,0.00020887,2]
[368578732,1751214638047,-500.0,0.00020887,2]
[368578734,1751214638056,-500.0,0.00020887,2]
[368578737,1751214638066,-500.0,0.00020887,2]
[368578739,1751214638075,-500.0,0.00020887,2]
[368578741,1751214638085,-500.0,0.00020887,2]
[368578744,1751214638094,-160.0,0.00020887,2]
[368578746,1751214638103,-500.0,0.00020887,2]
[368578748,1751214638112,-500.0,0.00020887,2]
[368578749,1751214638121,-500.0,0.00020887,2]
[368578750,1751214638129,-500.0,0.00020887,2]
[368578751,1751214638138,-500.0,0.00020887,2]
[368578752,1751214638147,-500.0,0.00020887,2]
[368578753,1751214638155,-500.0,0.00020887,2]
[368578754,1751214638164,-154.62255046,0.00020887,2]
[368578755,1751214638173,-300.0,0.00020887,2]
[368578756,1751214638183,-300.0,0.00020887,2]
[368578757,1751214638191,-300.0,0.00020887,2]
[368578758,1751214638200,-300.0,0.00020887,2]
[368578759,1751214638209,-300.0,0.00020887,2]
[368578760,1751214638218,-300.0,0.00020887,2]
[368578761,1751214638227,-300.0,0.00020887,2]
[368578762,1751214638235,-300.0,0.00020887,2]
[368578763,1751214638244,-151.0,0.00020887,2]
[368578764,1751214638253,-300.0,0.00020887,2]
[368578765,1751214638262,-300.0,0.00020887,2]
[368578766,1751214638271,-151.0,0.00020887,2]
[368578768,1751214638281,-151.0,0.00020887,2]
[368578770,1751214638292,-300.0,0.00020887,2]
[368578772,1751214638301,-151.0,0.00020887,2]
[368578774,1751214638309,-151.0,0.00020887,2]
[368578776,1751214638319,-151.0,0.00020887,2]
[368578778,1751214638330,-151.0,0.00020887,2]
[368578780,1751214638340,-151.0,0.00020887,2]
[368578782,1751214638349,-151.0,0.00020887,2]
[368578784,1751214638358,-151.0,0.00020887,2]
[368578786,1751214638368,-151.0,0.00020887,2]
[368578788,1751214638377,-151.0,0.00020887,2]
[368578790,1751214638387,-151.0,0.00020887,2]
[368578792,1751214638396,-151.0,0.00020887,2]
[368578794,1751214638405,-151.0,0.00020887,2]
[368578796,1751214638414,-151.0,0.00020887,2]
[368578799,1751214638433,-151.0,0.00020887,2]
[368578801,1751214638445,-151.0,0.00020887,2]
[368578803,1751214638456,-151.0,0.00020887,2]
[368578805,1751214638466,-151.0,0.00020887,2]
[368578807,1751214638476,-3971.1606,0.000209,2]
[368578810,1751214638487,-6778.5294,0.000209,2]
[368578812,1751214638497,-1000.0,0.000209,2]
[368578814,1751214638507,-1800.0,0.000209,7]
[368578816,1751214638517,-550.73628101,0.000209,2]
[368578818,1751214638527,-168.08423992,0.000209,2]
[368578820,1751214638536,-488.19526623,0.000209,2]
[368578822,1751214638546,-2090.1834,0.000209,2]
[368578824,1751214638556,-1885.7953,0.000209,2]
[368578826,1751214638568,-157.51152652,0.000209,2]
[368578829,1751214638578,-301.81,0.000209,2]
[368578831,1751214638588,-301.64,0.000209,2]
[368578833,1751214638598,-305.61,0.000209,2]
[368578835,1751214638608,-150.0,0.00020906,2]
[368578837,1751214638619,-1000.0,0.00020914,2]
[368578839,1751214638630,-594.32613515,0.00020915,2]
[368578841,1751214638640,-1603.68927479,0.00020915,2]
[368578843,1751214638651,-3222.32,0.00020951,2]
[368578845,1751214638661,-200.0,0.00020953,2]
[368578848,1751214638671,-500.0,0.00020973,2]
[368578850,1751214638681,-500.0,0.00020973,2]
[368578852,1751214638691,-500.0,0.00020973,2]
[368578854,1751214638701,-973.11214575,0.00020989,2]
[368578856,1751214638711,-480.0,0.00020995,2]
[368578857,1751214638720,-500.0,0.00020998,2]
[368578858,1751214638730,-440.86532189,0.00020998,2]
[368578859,1751214638740,-500.0,0.00020998,2]
[368578860,1751214638750,-500.0,0.00020998,2]
[368578861,1751214638760,-500.0,0.00020998,2]
[368578862,1751214638770,-500.0,0.00020998,2]
[368578863,1751214638780,-517.08712548,0.00020998,2]
[368578864,1751214638790,-500.0,0.00020998,2]
[368578865,1751214638800,-500.0,0.00020998,2]
[368578866,1751214638810,-500.0,0.00020998,2]
[368578867,1751214638820,-500.0,0.00020998,2]
[368578868,1751214638832,-438.62835895,0.00020998,2]
[368578869,1751214638841,-500.0,0.00020998,2]
[368578870,1751214638850,-500.0,0.00020998,2]
[368578871,1751214638859,-500.0,0.00020998,2]
[368578872,1751214638867,-393.96223345,0.00020998,2]
[368578873,1751214638874,-500.0,0.00020998,2]
[368578875,1751214638883,-500.0,0.00020998,2]
[368578876,1751214638891,-370.79662305,0.00020998,2]
[368578878,1751214638899,-500.0,0.00020998,2]
[368578880,1751214638907,-499.99999999,0.00020998,2]
[368578882,1751214638915,-553.26514016,0.00020999,2]
[368578884,1751214638923,-500.0,0.00020999,2]
[368578886,1751214638932,-165.75408736,0.00020999,2]
[368578887,1751214638940,-500.0,0.00020999,2]
[368578889,1751214638948,-500.0,0.00020999,2]
[368578891,1751214638956,-474.44928694,0.00020999,2]
[368578893,1751214638965,-645.644551,0.00020999,2]
[368578895,1751214638973,-500.0,0.00020999,2]
[368578897,1751214638981,-500.0,0.00020999,2]
[368578899,1751214638989,-500.0,0.00020999,2]
[368578900,1751214638997,-500.0,0.00020999,2]
[368578902,1751214639006,-500.0,0.00020999,2]
[368578905,1751214639016,-500.0,0.00020999,2]
[368578907,1751214639026,-500.0,0.00020999,2]
[368578909,1751214639036,-500.0,0.00020999,2]
[368578911,1751214639045,-500.0,0.00020999,2]
[368578913,1751214639056,-500.0,0.00020999,2]
[368578915,1751214639066,-500.0,0.00020999,2]
[368578917,1751214639076,-500.0,0.00020999,2]
[368578919,1751214639087,-500.0,0.00020999,2]
[368578921,1751214639097,-393.1935078,0.00020999,2]
[368578923,1751214639107,-600.0,0.00020999,2]
[368578925,1751214639118,-500.0,0.00020999,2]
[368578927,1751214639128,-500.0,0.00020999,2]
[368578929,1751214639140,-500.0,0.00020999,2]
[368578931,1751214639150,-156.50395232,0.00020999,2]
[368578933,1751214639160,-500.0,0.00020999,2]
[368578935,1751214639171,-500.0,0.00020999,2]
[368578937,1751214639182,-500.0,0.00020999,2]
[368578939,1751214639192,-500.0,0.00020999,2]
[368578941,1751214639202,-31106.01358094,0.00020999,3]
[368578943,1751214639213,-2013868.34691415,0.00020999,3]
[368578945,1751214639223,-208260.16159061,0.00021,2]
[368578947,1751214639233,-549852.02767073,0.00021,2]
[368578950,1751214639243,-550.73628099,0.00021002,2]
[368578952,1751214639253,-30681.80875965,0.00021015,2]
[368578954,1751214639263,-456.25,0.00021031,2]
[368578956,1751214639274,-454.78,0.00021031,2]
[368578958,1751214639287,-1603.68927478,0.00021075,2]
[368578960,1751214639297,-3437.84,0.00021092,2]
[368578962,1751214639307,-550.73628099,0.00021104,2]
[368578964,1751214639317,-1167.47,0.00021178,2]
[368578966,1751214639329,-150.0,0.00021178,2]
[368578968,1751214639339,-550.73628099,0.00021206,2]
[368578970,1751214639349,-1603.68927478,0.00021235,2]
[368578972,1751214639360,-217.26,0.00021269,2]
[368578974,1751214639370,-171.21,0.00021278,2]
[368578976,1751214639380,-163.85,0.00021278,2]
[368578978,1751214639391,-550.73628099,0.00021308,2]
[368578980,1751214639401,-488.19526617,0.00021327,2]
[368578983,1751214639412,-168.08423992,0.00021335,2]
[368578985,1751214639422,-1167.47,0.00021378,2]
[368578987,1751214639433,-150.0,0.00021378,2]
[368578989,1751214639444,-150.0,0.00021378,2]
[368578991,1751214639455,-163.85,0.00021378,2]
[368578993,1751214639465,-231.27658819,0.00021381,2]
[368578995,1751214639476,-1603.68927478,0.00021395,2]
[368578997,1751214639486,-550.73628099,0.00021409,2]
[368578999,1751214639496,-659.439393,0.0002143,2]
[368579001,1751214639505,-150.0,0.00021438,2]
[368579003,1751214639515,-1829.0,0.00021484,2]
[368579005,1751214639525,-1829.0,0.00021488,2]
[368579007,1751214639535,-731.34,0.000215,2]
[368579009,1751214639545,-550.73628099,0.00021511,2]
[368579011,1751214639555,-504.27020985,0.00021521,2]
[368579013,1751214639564,-1000.0,0.00021521,2]
[368579015,1751214639574,-1000.0,0.00021521,2]
[368579017,1751214639585,-1603.68927478,0.00021555,2]
[368579019,1751214639595,-348.4173981,0.000216,5]
[368579021,1751214639606,-348.41739804,0.000216,5]
[368579023,1751214639616,-348.41739804,0.000216,5]
[368579025,1751214639626,-348.41739804,0.000216,5]
[368579027,1751214639637,-348.41739804,0.000216,5]
[368579029,1751214639647,-348.41739804,0.000216,5]
[368579031,1751214639657,-348.41739804,0.000216,5]
[368579034,1751214639672,-348.41739804,0.000216,5]
[368579036,1751214639683,-348.41739804,0.000216,5]
[368579038,1751214639693,-550.73628099,0.00021613,2]
[368579041,1751214639704,-150.0,0.00021642,2]
[368579043,1751214639716,-659.4393931,0.00021649,2]
[368579045,1751214639727,-524.26156877,0.00021652,2]
[368579047,1751214639738,-1000.0,0.00021689,2]
[368579049,1751214639749,-2300.0,0.000217,7]
[368579051,1751214639761,-7000.0,0.000217,2]
[368579053,1751214639772,-550.73628099,0.00021715,2]
[368579055,1751214639783,-1603.68927478,0.00021716,2]
[368579057,1751214639793,-488.19526617,0.00021754,2]
[368579059,1751214639804,-336.92,0.00021757,2]
[368579061,1751214639815,-9999.99,0.00021757,2]
[368579064,1751214639826,-999.99,0.00021757,2]
[368579066,1751214639838,-150.99,0.00021757,2]
[368579068,1751214639848,-6193.7,0.00021757,2]
[368579070,1751214639859,-5979.14,0.00021757,2]
[368579072,1751214639869,-5888.0,0.00021761,2]
[368579074,1751214639880,-348.41739804,0.00021762,5]
[368579076,1751214639892,-168.08423992,0.0002177,2]
[368579079,1751214639903,-3158.65558891,0.0002179,2]
[368579081,1751214639914,-400.0,0.000218,7]
[368579083,1751214639925,-36208.7832,0.00021817,2]
[368579085,1751214639936,-500.0,0.00021817,2]
[368579087,1751214639947,-87117.685,0.00021817,2]
[368579090,1751214639958,-1000.0,0.00021817,2]
[368579092,1751214639968,-3778.0959,0.00021817,2]
[368579094,1751214639978,-5000.0,0.00021817,2]
[368579096,1751214639988,-88888.0,0.00021817,3]
[368579098,1751214639998,-835.62347362,0.00021817,3]
[368579100,1751214640010,-206.02963174,0.00021817,2]
[368579103,1751214640021,-550.73628099,0.00021817,2]
[368579105,1751214640032,-159.88415941,0.00021817,2]
[368579107,1751214640043,-708.57914454,0.00021817,2]
[368579109,1751214640054,-151.29791538,0.00021817,2]
[368579111,1751214640065,-14541.33478688,0.00021817,2]
[368579113,1751214640075,-424.05777942,0.00021817,2]
[368579115,1751214640087,-594.16,0.00021852,2]
[368579118,1751214640097,-771.36,0.00021852,2]
[368579120,1751214640108,-1603.68927478,0.00021876,2]
[368579122,1751214640119,-835.62347362,0.00021877,2]
[368579124,1751214640130,-400.0,0.000219,7]
[368579126,1751214640140,-304.33,0.000219,2]
[368579128,1751214640151,-302.91,0.000219,2]
[368579131,1751214640162,-304.51,0.000219,2]
[368579133,1751214640173,-302.04,0.000219,2]
[368579135,1751214640184,-304.99,0.000219,2]
[368579137,1751214640194,-303.78,0.000219,2]
[368579139,1751214640204,-301.1,0.000219,2]
[368579141,1751214640215,-60902.66699209,0.000219,2]
[368579143,1751214640225,-300.0,0.000219,2]
[368579145,1751214640235,-300.0,0.000219,2]
[368579148,1751214640246,-300.0,0.000219,2]
[368579150,1751214640256,-300.0,0.000219,2]
[368579152,1751214640266,-2000.0,0.000219,2]
[368579154,1751214640278,-998.8135012,0.000219,2]
[368579156,1751214640291,-973.11214575,0.00021907,2]
[368579158,1751214640301,-1307.281,0.00021907,2]
[368579161,1751214640312,-154.466,0.00021907,2]
[368579163,1751214640323,-666.0,0.00021916,2]
[368579165,1751214640335,-300.0,0.00021916,2]
[368579167,1751214640346,-666.0,0.00021916,2]
[368579169,1751214640358,-304.54,0.00021917,2]
[368579171,1751214640369,-490.0,0.00021917,2]
[368579173,1751214640380,-4035.638414,0.00021917,2]
[368579175,1751214640391,-490.0,0.00021917,2]
[368579178,1751214640401,-790.55,0.00021917,2]
[368579180,1751214640411,-3689.848277,0.00021917,2]
[368579182,1751214640422,-156.47876,0.00021917,2]
[368579184,1751214640432,-154.628684,0.00021917,2]
[368579186,1751214640442,-490.0,0.00021917,2]
[368579188,1751214640452,-490.0,0.00021917,2]
[368579190,1751214640462,-490.0,0.00021917,2]
[368579192,1751214640473,-490.0,0.00021917,2]
[368579194,1751214640484,-847.22,0.00021917,2]
[368579197,1751214640494,-195.22118237,0.00021917,2]
[368579199,1751214640505,-492.1847077,0.00021917,2]
[368579201,1751214640515,-490.0,0.00021917,2]
[368579203,1751214640525,-490.0,0.00021917,2]
[368579205,1751214640536,-490.0,0.00021917,2]
[368579207,1751214640546,-490.0,0.00021917,2]
[368579209,1751214640556,-490.0,0.00021917,2]
[368579211,1751214640566,-490.0,0.00021917,2]
[368579213,1751214640576,-490.0,0.00021917,2]
[368579215,1751214640586,-570.49,0.00021917,2]
[368579217,1751214640597,-491.54726819,0.00021917,2]
[368579220,1751214640608,-490.0,0.00021917,2]
[368579222,1751214640619,-490.0,0.00021917,2]
[368579224,1751214640630,-732.56,0.00021917,2]
[368579226,1751214640640,-490.0,0.00021917,2]
[368579228,1751214640650,-490.0,0.00021917,2]
[368579230,1751214640660,-490.0,0.00021917,2]
[368579232,1751214640670,-490.0,0.00021917,2]
[368579234,1751214640682,-510.37,0.00021917,2]
[368579236,1751214640692,-490.0,0.00021917,2]
[368579239,1751214640702,-490.0,0.00021917,2]
[368579241,1751214640713,-539.99,0.00021917,2]
[368579243,1751214640723,-490.0,0.00021917,2]
[368579245,1751214640733,-1590.55,0.00021917,2]
[368579247,1751214640743,-490.0,0.00021917,2]
[368579249,1751214640754,-490.0,0.00021917,2]
[368579251,1751214640764,-490.0,0.00021917,2]
[368579253,1751214640774,-490.0,0.00021917,2]
[368579255,1751214640784,-1335.83,0.00021917,2]
[368579257,1751214640795,-490.0,0.00021917,2]
[368579260,1751214640804,-490.0,0.00021917,2]
[368579262,1751214640814,-156.633071,0.00021917,2]
[368579264,1751214640824,-772.88,0.00021917,2]
[368579266,1751214640834,-172.404515,0.00021917,2]
[368579268,1751214640844,-494.28,0.00021917,2]
[368579270,1751214640854,-151.959345,0.00021917,2]